bitfinex-derivatives/quotes_ETHF0:USTF0_20250205
["timestamp","ask_amount","ask_price","bid_price","bid_amount"]
[1738753746168,3.2078,2795.4,2795.1,6.24503648]
[1738753746466,3.2078,2795.8,2795.1,6.24503648]
[1738753746467,3.2078,2795.3,2795.1,6.24503648]
[1738753747062,3.2078,2795.2,2795.1,6.24503648]
[1738753747367,3.2078,2795.2,2795.1,3.2078]
[1738753747556,3.2078,2795.2,2795.0,0.00536903]
[1738753747764,3.2078,2795.1,2795.0,0.00536903]
[1738753748064,3.2078,2795.3,2795.0,0.00536903]
[1738753748262,3.2078,2795.3,2795.2,3.03723648]
[1738753749862,3.2078,2795.8,2795.2,3.03723648]
[1738753750064,3.2078,2795.5,2795.2,3.78334028]
[1738753750268,3.2078,2795.5,2795.2,3.78903648]
[1738753750561,3.2078,2795.8,2795.2,3.03723648]
[1738753750562,3.2078,2795.3,2795.2,3.03723648]
[1738753750767,3.2078,2795.3,2795.1,3.2078]
[1738753750968,3.2078,2795.2,2795.1,3.2078]
[1738753751663,3.2078,2795.8,2795.1,6.24503648]
[1738753751867,3.2078,2795.3,2795.1,6.24503648]
[1738753752163,3.2078,2795.2,2795.1,3.2078]
[1738753752362,3.2078,2795.2,2795.0,0.00536903]
[1738753752562,3.2078,2795.1,2795.0,0.00536903]
[1738753752763,3.9339,2795.1,2795.0,0.00536903]
[1738753752963,5.7261,2795.1,2793.9,6.24503648]
[1738753753165,3.20243097,2794.1,2793.9,6.24503648]
[1738753753762,3.2078,2794.6,2793.9,6.24503648]
[1738753753962,3.20243097,2794.3,2793.9,6.24503648]
[1738753754163,3.20243097,2794.3,2794.0,0.00536903]
[1738753754366,3.20243097,2794.1,2794.0,0.00536903]
[1738753754568,6.41023097,2794.1,2794.0,0.00536903]
[1738753754766,3.20243097,2794.1,2794.0,0.00536903]
[1738753756567,6.41023097,2794.1,2793.3,8.32237134]
[1738753756774,3.20243097,2793.4,2793.3,8.32237134]
[1738753757071,3.2078,2794.1,2793.3,3.2078]
[1738753757072,3.20243097,2793.6,2793.3,3.2078]
[1738753757265,3.2078,2794.1,2793.3,3.9373]
[1738753757467,3.20243097,2793.6,2793.5,3.03723648]
[1738753757671,3.20243097,2793.7,2793.5,3.03723648]
[1738753758269,3.20243097,2793.6,2793.5,3.03723648]
[1738753760072,3.20243097,2793.6,2793.3,3.21316903]
[1738753760272,3.2078,2794.1,2793.4,3.03723648]
[1738753760472,3.20243097,2793.7,2793.4,3.71993648]
[1738753761267,3.20243097,2793.7,2793.6,3.2078]
[1738753762779,3.21316903,2794.5,2793.6,3.2078]
[1738753762971,3.20243097,2793.7,2793.6,3.2078]
[1738753763171,3.20243097,2793.7,2793.4,3.71993648]
[1738753763371,3.20243097,2793.5,2793.4,6.92773648]
[1738753771785,3.20243097,2793.5,2793.4,3.2078]
[1738753772181,3.20243097,2793.5,2793.4,6.24503648]
[1738753775682,3.9407,2794.1,2793.4,6.24503648]
[1738753775979,3.9407,2794.1,2793.8,3.03723648]
[1738753776189,0.7329,2794.1,2793.8,3.03723648]
[1738753776384,3.20243097,2793.9,2793.8,3.03723648]
[1738753776789,3.20243097,2793.9,2793.8,2.41670209]
[1738753778791,3.20243097,2793.9,2793.7,3.2078]
[1738753778991,3.20243097,2793.8,2793.7,3.2078]
[1738753780691,3.20243097,2793.8,2793.7,5.62450209]
[1738753782693,3.20243097,2793.8,2793.7,3.2078]
[1738753784495,2.84333097,2793.8,2793.7,3.2078]
[1738753784885,2.84333097,2793.8,2793.7,3.75657627]
[1738753785290,2.84333097,2793.8,2793.7,4.19258788]
[1738753785692,2.84333097,2793.8,2793.7,4.75166323]
[1738753787296,2.84333097,2793.8,2793.7,4.31565162]
[1738753787998,0.7329,2794.1,2793.7,4.31565162]
[1738753788197,2.84333097,2793.9,2793.8,0.54877627]
[1738753788395,0.7329,2794.1,2793.8,1.10785162]
[1738753788592,2.84333097,2793.9,2793.8,3.58831053]
[1738753788896,2.84333097,2793.9,2793.8,4.13705975]
[1738753789799,3.2078,2794.4,2793.8,4.13705975]
[1738753790099,2.84333097,2794.2,2793.9,0.54887914]
[1738753790297,2.84333097,2794.2,2794.0,0.54887914]
[1738753790495,3.9374,2794.4,2794.1,0.54887914]
[1738753790800,4.6265,2794.4,2794.2,0.54887914]
[1738753790988,5.368,2794.4,2794.3,0.54887914]
[1738753791194,5.368,2794.4,2794.3,1.10795449]
[1738753791397,8.21133097,2794.4,2794.3,1.10795449]
[1738753792800,7.46983097,2794.4,2794.3,1.10795449]
[1738753793500,0.00536903,2794.5,2794.3,9.13718967]
[1738753793700,0.7399,2795.8,2795.2,3.02923518]
[1738753793895,2.84333097,2795.9,2795.7,3.02923518]
[1738753794103,0.694,2796.6,2795.7,3.02923518]
[1738753794104,2.84333097,2796.0,2795.8,3.75667914]
[1738753794298,1.4687,2796.5,2795.9,3.57811432]
[1738753794299,2.84333097,2796.2,2795.9,3.57811432]
[1738753794496,1.0,2797.0,2796.1,6.23703518]
[1738753794699,3.84333097,2797.0,2796.8,3.02923518]
[1738753794899,1.0,2797.0,2796.9,0.54887914]
[1738753795297,3.84333097,2797.0,2796.9,0.54887914]
[1738753795506,3.84333097,2797.0,2796.9,0.55907535]
[1738753795900,3.84333097,2797.0,2796.9,3.76687535]
[1738753796096,3.84333097,2797.0,2796.9,4.31116046]
[1738753796293,3.84333097,2797.0,2796.9,3.76687535]
[1738753796904,3.84333097,2797.0,2796.9,4.30996525]
[1738753797100,0.00536903,2797.2,2796.9,4.30996525]
[1738753797300,3.21070502,2798.0,2796.9,4.30996525]
[1738753797301,0.00290502,2798.0,2797.1,6.05847036]
[1738753797501,3.2078,2799.3,2797.9,6.23703518]
[1738753797804,1.39716631,2799.1,2798.8,3.2078]
[1738753797995,3.2078,2799.3,2798.8,3.02923518]
[1738753797996,1.39716631,2798.9,2798.8,3.02923518]
[1738753798305,1.39716631,2799.3,2798.9,4.69562277]
[1738753798606,0.7577,2800.5,2798.9,4.69562277]
[1738753798607,3.2078,2800.5,2799.2,3.2078]
[1738753798806,1.39716631,2799.8,2799.7,3.02923518]
[1738753799001,3.2078,2799.8,2799.7,3.02923518]
[1738753799206,4.60496631,2799.8,2799.3,3.02923518]
[1738753799403,1.39716631,2799.4,2799.3,3.02923518]
[1738753799710,4.60496631,2799.4,2799.1,0.00535906]
[1738753799913,3.2078,2799.4,2799.1,0.00535906]
[1738753800106,1.39716631,2799.2,2799.1,0.00535906]
[1738753800810,6.39716631,2799.2,2799.1,0.00535906]
[1738753801101,1.39716631,2799.2,2799.1,0.00535906]
[1738753801508,3.2078,2799.4,2799.1,0.00535906]
[1738753801711,0.00531238,2799.6,2799.3,6.23703518]
[1738753801909,3.2078,2800.8,2799.3,6.23703518]
[1738753802212,3.2078,2800.8,2800.5,3.02923518]
[1738753802407,1.39716631,2800.6,2800.1,3.02923518]
[1738753802706,1.39716631,2800.2,2799.8,3.02923518]
[1738753802907,1.39716631,2799.9,2799.8,6.23703518]
[1738753803101,3.2078,2800.7,2799.8,6.23703518]
[1738753803301,1.39716631,2800.0,2799.8,6.23703518]
[1738753803503,1.39716631,2799.9,2799.8,6.23703518]
[1738753803812,1.39716631,2800.1,2799.8,6.23703518]
[1738753804011,0.6991,2801.1,2799.5,3.02923518]
[1738753804012,1.39716631,2799.9,2799.5,3.02923518]
[1738753804212,1.39716631,2799.6,2799.5,3.02923518]
[1738753804510,3.2078,2800.3,2799.5,6.23703518]
[1738753804810,1.39716631,2799.9,2799.8,3.02923518]
[1738753805908,1.39716631,2799.9,2799.5,3.2078]
[1738753806108,1.39716631,2799.6,2799.5,3.2078]
[1738753806605,3.2078,2800.5,2799.5,7.77883928]
[1738753806813,3.2078,2800.5,2800.1,3.02923518]
[1738753807109,40.8,2800.4,2800.1,3.02923518]
[1738753807300,3.2078,2800.5,2800.1,3.02923518]
[1738753807699,40.8,2800.4,2800.1,3.02923518]
[1738753807904,40.8,2800.4,2799.8,3.2078]
[1738753808105,3.2078,2800.2,2799.4,3.02923518]
[1738753809610,3.2078,2800.2,2799.7,3.02923518]
[1738753810209,40.8,2800.4,2799.7,3.02923518]
[1738753810408,3.2078,2800.5,2800.1,3.02923518]
[1738753812106,4.60496631,2800.2,2800.1,3.02923518]
[1738753812811,3.2078,2800.6,2800.1,3.02923518]
[1738753813010,4.60496631,2800.9,2800.5,3.02923518]
[1738753813213,1.39716631,2800.9,2800.6,3.2078]
[1738753814206,1.39716631,2800.9,2800.8,3.02923518]
[1738753815613,4.60496631,2800.9,2800.2,3.02923518]
[1738753815815,3.2078,2800.5,2800.2,3.02923518]
[1738753816113,1.39716631,2800.3,2800.2,3.02923518]
[1738753818012,1.39716631,2800.3,2800.2,6.23703518]
[1738753818319,1.39716631,2800.3,2800.2,3.02923518]
[1738753819022,4.60496631,2800.3,2800.1,0.00535906]
[1738753819214,1.39716631,2800.2,2800.1,0.00535906]
[1738753819721,7.13776631,2800.2,2799.6,3.02923518]
[1738753820015,4.60496631,2799.7,2799.1,4.5128]
[1738753820215,1.39716631,2799.6,2799.1,4.5128]
[1738753820512,1.39716631,2799.6,2799.1,3.2078]
[1738753821014,1.40252537,2799.6,2799.1,3.21315906]
[1738753821216,41.5377,2801.0,2799.5,6.23703518]
[1738753821217,3.2078,2800.4,2799.5,6.23703518]
[1738753821415,3.2078,2800.4,2800.3,3.02923518]
[1738753821805,4.60496631,2800.4,2800.0,3.02923518]
[1738753822013,3.2078,2800.1,2799.7,3.58731006]
[1738753822213,1.39716631,2799.8,2799.7,3.02923518]
[1738753822817,3.2078,2800.1,2799.7,3.02923518]
[1738753823016,1.39716631,2800.0,2799.5,3.2078]
[1738753823219,1.39716631,2800.2,2799.7,4.61032786]
[1738753823514,3.2078,2800.1,2799.6,5.18563226]
[1738753823717,1.39716631,2799.7,2799.6,0.55788196]
[1738753823916,1.39716631,2799.7,2799.6,1.09167662]
[1738753824108,3.2078,2800.4,2799.6,4.1209118]
[1738753824312,1.39716631,2800.1,2799.7,0.53369289]
[1738753824513,1.39716631,2800.1,2799.8,0.53369289]
[1738753824819,3.2078,2800.4,2800.0,3.02923518]
[1738753825320,3.2078,2800.4,2799.7,3.2078]
[1738753825321,1.39716631,2800.1,2799.7,3.2078]
[1738753825506,3.2078,2800.4,2799.7,3.2078]
[1738753825507,3.2078,2800.4,2800.0,3.02923518]
[1738753826012,1.39716631,2800.1,2800.0,3.02923518]
[1738753826214,1.39716631,2800.1,2800.0,3.5650896]
[1738753826413,1.39716631,2800.1,2800.0,3.56617948]
[1738753826615,1.39716631,2800.1,2800.0,4.12408451]
[1738753827620,4.60496631,2800.1,2800.0,4.12408451]
[1738753827918,2.47584151,2800.1,2800.0,4.12408451]
[1738753828519,2.47584151,2800.1,2800.0,4.12520651]
[1738753829017,3.2078,2800.4,2800.0,4.12520651]
[1738753829318,3.2078,2800.4,2800.1,0.5380663]
[1738753829514,3.2078,2800.4,2800.0,3.58714021]
[1738753829724,3.2078,2800.4,2800.2,0.55790503]
[1738753830222,3.2078,2800.4,2800.3,0.55790503]
[1738753830713,3.2078,2800.7,2800.3,0.55790503]
[1738753830918,3.2078,2800.7,2800.4,3.02923518]
[1738753831322,3.2078,2800.7,2800.5,0.55790503]
[1738753832818,3.2078,2800.7,2800.5,0.55341649]
[1738753833020,8.2078,2800.7,2800.5,0.55341649]
[1738753834222,3.2078,2800.7,2800.5,0.55341649]
[1738753834620,3.2078,2800.7,2800.4,3.02923518]
[1738753835119,3.2078,2800.7,2800.0,3.02923518]
[1738753835320,3.2078,2800.4,2800.0,6.23703518]
[1738753835720,3.2078,2800.4,2800.0,3.02923518]
[1738753838718,3.2078,2800.4,2800.3,2.40584976]
[1738753839628,3.2078,2800.4,2799.5,2.40584976]
[1738753839629,3.2078,2800.4,2800.0,2.40584976]
[1738753840418,3.2078,2800.1,2800.0,2.40584976]
[1738753840622,3.2078,2800.1,2799.4,2.40584976]
[1738753840921,2.40584976,2800.5,2799.8,3.2078]
[1738753840922,3.2078,2800.5,2799.8,3.2078]
[1738753841319,3.2078,2800.5,2799.9,0.7473]
[1738753841725,3.2078,2800.5,2800.2,2.40584976]
[1738753842725,3.2078,2800.5,2799.9,2.40584976]
[1738753842929,3.2078,2800.0,2799.6,2.40584976]
[1738753844420,3.2078,2800.0,2799.9,2.40584976]
[1738753845232,3.2078,2800.0,2799.6,2.40584976]
[1738753845426,3.2078,2799.7,2799.6,2.40584976]
[1738753845725,3.2078,2800.1,2799.6,2.95695772]
[1738753846133,3.2078,2800.1,2799.7,0.55110796]
[1738753846631,3.2078,2800.1,2799.9,2.40584976]
[1738753847219,3.2078,2800.4,2799.9,2.40584976]
[1738753847420,0.7377,2801.0,2800.3,2.40584976]
[1738753847421,3.2078,2800.7,2800.3,2.40584976]
[1738753847630,3.2078,2800.4,2800.0,2.95695772]
[1738753847833,3.2078,2800.1,2800.0,2.40584976]
[1738753848131,3.2078,2800.1,2799.7,2.40584976]
[1738753848426,1.4642,2800.6,2799.1,2.41120882]
[1738753848427,3.2078,2799.8,2799.1,2.41120882]
[1738753848632,0.7368,2799.7,2799.5,2.40584976]
[1738753849229,3.2078,2799.9,2799.5,2.40584976]
[1738753849533,3.2078,2799.9,2799.8,2.40584976]
[1738753851126,3.2078,2799.9,2799.5,2.40584976]
[1738753851632,3.2078,2799.6,2799.2,2.40584976]
[1738753851931,3.2078,2799.6,2799.5,2.40584976]
[1738753853728,3.2078,2799.6,2799.2,2.40584976]
[1738753854438,3.2078,2799.3,2797.7,2.40584976]
[1738753854628,3.2078,2798.1,2797.7,2.40584976]
[1738753855037,3.2078,2798.1,2797.1,10.7282211]
[1738753855038,3.2078,2797.8,2797.1,10.7282211]
[1738753855333,2.40584976,2798.2,2797.1,10.7282211]
[1738753855334,3.2078,2797.3,2797.1,10.7282211]
[1738753855531,5.61364976,2797.3,2797.1,7.18657134]
[1738753855738,1.3784,2797.2,2797.1,0.0579304]
[1738753856041,1.3784,2797.2,2796.9,11.09649512]
[1738753856233,3.2078,2797.0,2796.9,11.09649512]
[1738753856536,46.41364976,2797.0,2795.9,2.40584976]
[1738753856740,3.2078,2796.0,2795.7,3.73912212]
[1738753857234,0.00535906,2796.1,2795.7,3.73912212]
[1738753857536,0.00535906,2796.1,2796.0,3.02472212]
[1738753859539,3.2078,2796.7,2796.0,8.02472212]
[1738753859742,3.2078,2796.7,2796.4,3.02472212]
[1738753861242,3.2078,2796.7,2796.1,3.02472212]
[1738753862037,3.21315906,2796.8,2796.4,3.02472212]
[1738753862344,0.00535906,2796.8,2796.4,3.02472212]
[1738753862545,0.00535906,2796.8,2796.2,3.2078]
[1738753862546,3.2078,2797.2,2796.7,3.02472212]
[1738753862847,3.2078,2797.2,2797.0,3.02472212]
[1738753863242,3.2078,2797.6,2797.0,3.02472212]
[1738753863845,3.2078,2797.8,2797.0,3.03008118]
[1738753864045,3.2078,2797.8,2797.3,3.02472212]
[1738753864252,3.2078,2797.8,2797.6,3.02472212]
[1738753864750,3.2078,2797.8,2797.1,0.721]
[1738753865148,3.2078,2797.4,2797.0,0.00535906]
[1738753865350,3.2078,2797.1,2797.0,0.00535906]
[1738753868253,8.2078,2797.1,2797.0,0.00535906]
[1738753868544,8.2078,2797.1,2795.8,6.23252212]
[1738753868853,3.2078,2796.3,2795.8,3.2078]
[1738753869053,3.2078,2796.3,2795.5,3.02472212]
[1738753869350,3.2078,2796.0,2795.8,3.02472212]
[1738753869851,3.2078,2796.0,2795.6,0.00535906]
[1738753870052,3.2078,2795.7,2795.6,0.00535906]
[1738753871848,0.00535906,2796.2,2795.6,0.00535906]
[1738753871849,3.21315906,2796.2,2795.6,0.00535906]
[1738753872447,3.2078,2795.9,2795.6,0.00535906]
[1738753873352,3.02472212,2795.7,2794.3,3.02472212]
[1738753873549,3.2078,2795.3,2794.3,3.02472212]
[1738753874251,3.2078,2794.9,2793.8,3.2078]
[1738753874449,3.2078,2794.5,2793.8,3.2078]
[1738753874852,0.00535906,2794.4,2794.1,0.00535906]
[1738753876052,3.2078,2794.2,2794.1,0.00535906]
[1738753880358,0.00535906,2794.4,2794.1,0.00535906]
[1738753880554,3.2078,2794.2,2794.1,0.00535906]
[1738753881755,8.2078,2794.2,2794.1,0.00535906]
[1738753882457,8.2078,2794.2,2793.1,6.23252212]
[1738753882658,3.2078,2793.8,2793.1,6.23252212]
[1738753882857,3.2078,2793.8,2793.1,3.2078]
[1738753883061,3.2078,2793.5,2792.8,3.02472212]
[1738753883258,3.2078,2793.5,2792.8,6.23252212]
[1738753883853,3.2078,2793.5,2792.9,0.00536932]
[1738753885657,3.2078,2793.2,2792.9,0.00536932]
[1738753887554,3.2078,2793.8,2793.1,6.23252212]
[1738753887760,3.2078,2793.8,2793.5,3.02472212]
[1738753888156,3.2078,2794.0,2793.5,3.02472212]
[1738753888454,3.2078,2794.0,2793.2,0.7403]
[1738753888455,3.2078,2794.3,2793.8,3.02472212]
[1738753891458,3.2078,2794.3,2793.9,0.7028]
[1738753897162,3.2078,2794.3,2793.8,3.02472212]
[1738753897562,3.2078,2793.9,2793.4,3.02472212]
[1738753899069,0.00535906,2794.4,2793.3,0.7114]
[1738753899070,3.2078,2793.6,2793.3,0.7114]
[1738753899265,3.2078,2793.6,2793.0,0.7437]
[1738753899455,3.2078,2793.6,2792.8,3.02472212]
[1738753899763,3.2078,2793.6,2792.7,3.2078]
[1738753899764,3.2078,2793.2,2792.7,3.2078]
[1738753900161,3.2078,2793.2,2792.6,0.7114]
[1738753900362,3.2078,2793.2,2792.5,3.02472212]
[1738753900568,44.0078,2793.2,2792.5,3.02472212]
[1738753900867,44.0078,2793.2,2792.4,0.7505]
[1738753901258,44.0078,2793.2,2792.2,6.23252212]
[1738753903069,44.0078,2793.2,2792.5,3.02472212]
[1738753903268,3.2078,2793.2,2792.8,3.02472212]
[1738753904466,3.2078,2793.2,2792.7,1.4163]
[1738753904667,3.2078,2793.2,2792.3,3.2078]
[1738753905066,0.7342,2793.1,2792.3,3.2078]
[1738753905267,0.7342,2793.1,2792.2,3.02472212]
[1738753906474,5.7342,2793.1,2792.1,0.727]
[1738753906664,5.7342,2793.1,2792.0,3.2078]
[1738753906665,3.2078,2792.5,2792.0,3.2078]
[1738753906972,0.7342,2793.1,2791.7,3.2078]
[1738753906973,3.2078,2792.1,2791.7,3.2078]
[1738753907167,3.2078,2792.1,2791.6,3.75892212]
[1738753907364,3.2078,2792.1,2791.5,0.6876]
[1738753907568,3.21316932,2792.1,2791.6,0.00536932]
[1738753907763,3.21316932,2792.1,2791.6,3.03009144]
[1738753907969,0.00536932,2792.1,2791.7,3.2078]
[1738753908366,0.00536932,2792.1,2791.9,3.02472212]
[1738753908977,0.00536932,2792.1,2791.7,3.9208]
[1738753910875,0.00536932,2792.1,2791.7,3.2078]
[1738753912776,0.00536932,2792.1,2791.6,0.00536932]
[1738753913170,3.2078,2791.8,2791.6,0.00536932]
[1738753913875,8.2078,2791.8,2791.6,0.00536932]
[1738753914072,3.2078,2791.8,2791.6,0.00536932]
[1738753914477,40.8,2791.7,2791.6,0.00536932]
[1738753914879,3.2078,2791.8,2791.6,0.00536932]
[1738753915674,8.2078,2791.8,2791.6,0.00536932]
[1738753915879,43.82472212,2791.7,2790.6,0.7431]
[1738753916081,3.2078,2790.9,2790.6,0.7431]
[1738753916474,3.2078,2791.2,2790.6,0.7431]
[1738753917078,3.2078,2791.2,2790.6,0.74846932]
[1738753918080,3.2078,2791.2,2790.7,3.02472212]
[1738753918285,3.2078,2791.2,2791.0,3.02472212]
[1738753918478,3.2078,2791.2,2791.1,0.7296]
[1738753918679,3.2078,2791.2,2791.1,1.4373]
[1738753919990,3.2078,2791.2,2790.7,3.02472212]
[1738753920482,3.2078,2791.2,2790.7,3.75432212]
[1738753921581,3.2078,2791.8,2791.0,6.23252212]
[1738753921786,0.7124,2792.0,2790.7,3.75432212]
[1738753921787,3.2078,2791.5,2790.7,3.75432212]
[1738753921983,3.2078,2791.5,2790.8,3.2078]
[1738753922184,0.7124,2792.0,2790.8,3.2078]
[1738753922185,3.2078,2791.4,2790.8,3.2078]
[1738753923886,3.2078,2791.8,2791.0,3.02472212]
[1738753924688,3.2078,2791.8,2791.3,3.02472212]
[1738753924890,3.2078,2791.8,2791.4,4.6686]
[1738753925388,3.2078,2791.8,2791.4,5.4331]
[1738753925996,0.00536932,2792.1,2791.6,3.02472212]
[1738753926298,0.00536932,2792.1,2791.7,3.2078]
[1738753927397,0.00536932,2792.1,2791.4,5.4331]
[1738753928491,3.2078,2791.9,2791.4,5.4331]
[1738753929398,3.2078,2791.9,2791.4,4.6686]
[1738753930894,3.2078,2791.9,2791.6,3.02472212]
[1738753931287,3.2078,2791.9,2791.5,0.7446]
[1738753932289,3.2078,2791.9,2791.4,4.6686]
[1738753932494,0.00536932,2792.1,2791.4,4.6686]
[1738753932690,3.2078,2791.9,2791.4,3.9074]
[1738753932899,3.2078,2791.6,2790.9,3.9234]
[1738753933194,3.2078,2791.6,2790.9,4.6817]
[1738753934390,0.7172,2791.5,2790.9,4.6817]
[1738753934592,0.7172,2791.5,2790.9,3.2078]
[1738753934791,0.7258,2791.4,2790.9,3.2078]
[1738753935095,3.2078,2791.6,2790.9,3.2078]
[1738753935296,3.2078,2791.6,2791.0,0.6906]
[1738753935803,3.2078,2791.3,2790.6,3.21316932]
[1738753936603,3.2078,2791.3,2791.2,0.00817228]
[1738753940512,3.2078,2791.3,2791.2,0.77317228]
[1738753942103,0.00536932,2792.1,2791.2,0.77317228]
[1738753942309,0.00536932,2792.1,2791.6,3.02472212]
[1738753942510,0.00536932,2792.1,2791.7,1.4391]
[1738753943207,0.00536932,2792.1,2791.9,3.02472212]
[1738753943410,3.2078,2793.2,2792.0,0.7542]
[1738753943708,4.6478,2794.0,2793.1,3.2078]
[1738753943911,4.6478,2794.0,2793.2,0.7542]
[1738753944117,3.2078,2793.3,2792.6,3.02472212]
[1738753944411,3.2078,2793.3,2792.6,6.23252212]
[1738753944613,0.00536932,2793.2,2792.7,0.00536932]
[1738753945108,0.00536932,2793.2,2793.1,3.2078]
[1738753945309,0.00536932,2793.2,2792.9,3.02472212]
[1738753946008,0.00536932,2793.2,2792.7,3.92816932]
[1738753946509,3.2078,2793.0,2792.7,0.00536932]
[1738753946908,0.00536932,2793.2,2792.7,0.00536932]
[1738753947111,0.00536932,2793.2,2792.7,3.21316932]
[1738753947910,0.00536932,2793.2,2792.9,3.02472212]
[1738753948807,0.00536932,2793.2,2793.0,0.7353]
[1738753949612,0.00536932,2793.2,2793.1,0.7481]
[1738753952607,0.00536932,2793.2,2793.1,3.9559]
[1738753956318,0.00536932,2793.2,2793.1,3.2078]
[1738753961423,0.00536932,2793.2,2793.0,0.7353]
[1738753961623,0.00536932,2793.2,2792.7,3.21316932]
[1738753961624,3.21316932,2793.2,2792.7,0.00536932]
[1738753961828,1.3954,2793.1,2792.7,0.00536932]
[1738753962221,3.2078,2792.9,2792.7,0.00536932]
[1738753963121,0.00536932,2793.2,2792.7,0.00536932]
[1738753963320,0.00536932,2793.2,2792.9,3.2078]
[1738753963721,3.2078,2793.1,2792.7,0.00536932]
[1738753964025,0.7082,2793.0,2792.7,0.00536932]
[1738753964326,0.7429,2792.9,2792.7,0.00536932]
[1738753970333,3.2078,2792.8,2792.7,0.00536932]
[1738753970721,0.7429,2792.9,2792.7,0.00536932]
[1738753972836,3.2078,2792.8,2792.7,0.00536932]
[1738753973328,49.0078,2792.8,2791.9,3.2078]
[1738753973529,3.2078,2792.4,2791.9,3.2078]
[1738753973828,40.8,2792.8,2791.9,3.2078]
[1738753973829,3.2078,2792.7,2791.9,3.2078]
[1738753974432,3.2078,2792.7,2792.0,3.02472212]
[1738753974628,3.2078,2792.7,2792.0,4.50609144]
[1738753976129,3.2078,2792.7,2792.0,0.75876932]
[1738753978926,3.2078,2792.7,2792.0,0.00536932]
[1738753979334,3.2078,2792.4,2792.0,0.00536932]
[1738753979634,0.7191,2792.3,2792.0,0.00536932]
[1738753980930,0.7429,2792.9,2792.2,3.2078]
[1738753981334,3.2078,2793.7,2792.8,3.2078]
[1738753981528,0.7191,2793.6,2793.0,3.02472212]
[1738753981839,0.7191,2793.6,2792.8,3.2078]
[1738753981840,3.74382212,2793.6,2792.8,3.2078]
[1738753982132,3.2078,2793.4,2792.5,3.2078]
[1738753982836,3.2078,2793.1,2792.5,3.2078]
[1738753983039,0.7768,2793.0,2792.5,3.2078]
[1738753983431,0.7743,2792.9,2792.5,3.2078]
[1738753983630,3.9821,2792.9,2792.0,0.00536932]
[1738753984132,40.8,2792.8,2792.0,0.00536932]
[1738753985730,3.2078,2792.6,2792.0,0.00536932]
[1738753986136,3.2078,2792.3,2792.0,0.00536932]
[1738753986434,1.4916,2792.2,2792.0,0.00536932]
[1738753986635,3.02472212,2792.1,2792.0,0.00536932]
[1738753986836,3.02472212,2792.1,2791.3,3.2078]
[1738753987036,3.2078,2791.9,2791.3,3.2078]
[1738753987431,3.02472212,2792.1,2791.3,3.2078]
[1738753987733,4.6994,2792.2,2791.3,3.2078]
[1738753987934,4.6994,2792.2,2791.4,0.00357611]
[1738753988636,4.6994,2792.2,2791.5,3.02472212]
[1738753988935,4.6994,2792.2,2791.6,0.7574]
[1738753989131,4.6994,2792.2,2791.6,1.4824]
[1738753989933,3.2078,2791.9,2791.4,0.00357611]
[1738753993936,3.78002212,2792.1,2791.4,0.00357611]
[1738753996035,3.2078,2791.9,2791.4,0.00357611]
[1738753998033,1.4916,2792.2,2791.6,3.2078]
[1738753998634,42.2916,2792.2,2791.6,3.2078]
[1738753999134,1.4916,2792.2,2791.6,3.2078]
[1738753999538,3.9848,2792.9,2791.5,4.57172212]
[1738753999539,40.8,2792.6,2791.9,3.2078]
[1738753999738,41.5258,2792.6,2791.9,3.2078]
[1738753999939,0.7258,2792.6,2791.9,3.2078]
[1738754000142,3.2078,2792.9,2792.4,3.2078]
[1738754000438,44.01316932,2793.2,2792.4,3.2078]
[1738754000742,0.7402,2793.1,2792.4,3.2078]
[1738754003442,0.7402,2793.1,2792.7,3.2078]
[1738754005247,0.00536932,2793.2,2792.7,3.2078]
[1738754007847,0.00536932,2793.2,2793.0,3.2078]
[1738754008846,0.00536932,2793.2,2792.8,0.00357611]
[1738754013752,3.2078,2793.0,2792.8,0.00357611]
[1738754013952,0.7859,2792.9,2792.8,0.00357611]
[1738754014851,0.00536932,2793.2,2792.8,0.00357611]
[1738754018663,0.00536932,2793.2,2793.0,0.00653343]
[1738754019163,5.00536932,2793.2,2793.0,0.00653343]
[1738754019357,5.74946932,2793.2,2792.8,0.00357611]
[1738754019563,6.23252212,2792.9,2791.8,3.2078]
[1738754019765,3.2078,2792.5,2791.8,3.2078]
[1738754019969,3.2078,2792.5,2791.9,1.4865]
[1738754019970,40.8,2792.4,2791.9,1.4865]
[1738754020168,40.8,2792.4,2792.1,3.2078]
[1738754020369,3.9705,2792.8,2792.1,3.2078]
[1738754020763,3.9705,2792.8,2792.2,0.7345]
[1738754021566,44.7705,2792.8,2792.2,0.7345]
[1738754023068,3.2078,2792.8,2792.3,2.42005599]
[1738754025168,3.98266932,2793.2,2792.5,3.2078]
[1738754025369,44.78266932,2793.2,2792.6,1.5286]
[1738754025769,41.57486932,2793.2,2792.6,1.5286]
[1738754027971,40.80536932,2793.2,2792.6,3.94865599]
[1738754028670,0.00536932,2793.2,2792.9,5.62785599]
[1738754028868,0.00536932,2793.2,2793.0,0.7822]
[1738754030270,0.00536932,2793.2,2792.9,5.62785599]
[1738754030472,0.00536932,2793.2,2792.9,3.2078]
[1738754031873,0.73466932,2793.2,2792.9,3.2078]
[1738754032374,0.73466932,2793.2,2792.6,0.7569]
[1738754034080,0.00536932,2793.2,2792.6,3.17695599]
[1738754038078,0.00536932,2793.2,2792.6,0.7569]
[1738754039177,0.00536932,2793.2,2793.1,3.2078]
[1738754040286,3.9659,2794.3,2793.1,8.2078]
[1738754040491,3.9659,2794.3,2793.6,3.2078]
[1738754040784,40.8,2794.2,2793.6,3.2078]
[1738754041382,40.80536932,2794.2,2793.6,3.2078]
[1738754041988,0.00536932,2794.2,2794.1,2.42005599]
[1738754042183,0.7581,2795.0,2794.1,2.42005599]
[1738754042378,0.7581,2795.0,2794.5,3.2078]
[1738754042587,3.17815599,2795.0,2794.5,3.2078]
[1738754042883,2.42005599,2794.7,2794.5,3.2078]
[1738754043081,0.7608,2794.6,2794.5,3.2078]
[1738754043284,0.7608,2794.6,2793.8,3.2078]
[1738754043484,0.7608,2794.6,2794.3,0.00536932]
[1738754044888,5.62785599,2794.4,2794.3,0.00536932]
[1738754045478,46.42785599,2794.4,2794.3,0.00536932]
[1738754045894,44.0078,2794.4,2794.3,0.00536932]
[1738754046189,3.2078,2794.4,2794.3,0.00536932]
[1738754047787,40.8,2794.5,2794.3,0.00536932]
[1738754048181,3.16795599,2794.4,2794.3,0.00536932]